bitfinex/quotes_BTCUSD_20241025
["timestamp","ask_amount","ask_price","bid_price","bid_amount"]
[1729889538906,0.04474985,66887.0,66886.0,0.149508]
[1729889539133,0.05317549,66887.0,66886.0,0.149508]
[1729889539833,0.06712478,66889.0,66888.0,0.149503]
[1729889540079,0.26926881,66895.0,66889.0,0.299002]
[1729889540310,0.22450889,66895.0,66894.0,0.14949]
[1729889540533,0.04475992,66898.0,66897.0,0.149483]
[1729889540959,0.06712478,66899.0,66894.0,0.29898]
[1729889541187,0.06712478,66899.0,66898.0,0.149481]
[1729889541188,0.21762859,66899.0,66898.0,0.149481]
[1729889541603,0.21762868,66899.0,66896.0,0.149484]
[1729889541840,0.21762868,66899.0,66889.0,0.299002]
[1729889541841,0.25,66897.0,66889.0,0.299002]
[1729889542062,0.04475057,66893.0,66891.0,0.149496]
[1729889542301,0.25,66889.0,66881.0,0.0794]
[1729889542514,0.15050381,66888.0,66887.0,0.22450889]
[1729889542729,0.3828625,66888.0,66879.0,0.299047]
[1729889542939,0.3828625,66888.0,66876.0,0.0937]
[1729889542940,0.25,66881.0,66876.0,0.299056]
[1729889543171,0.15050381,66880.0,66874.0,0.230573]
[1729889543393,0.04475941,66879.0,66874.0,0.151173]
[1729889543622,0.15050381,66880.0,66878.0,0.149524]
[1729889543623,0.19526322,66880.0,66878.0,0.149524]
[1729889544075,0.04475941,66879.0,66878.0,0.149524]
[1729889544370,0.04475941,66879.0,66874.0,0.00164]
[1729889544371,0.21764293,66879.0,66874.0,0.00164]
[1729889544602,0.08949983,66880.0,66874.0,0.00164]
[1729889544603,0.04476633,66875.0,66874.0,0.00164]
[1729889544830,0.0671495,66876.0,66874.0,0.00164]
[1729889545060,0.21765331,66876.0,66874.0,0.00164]
[1729889545519,0.0447654,66875.0,66874.0,0.00164]
[1729889545727,0.15050381,66876.0,66874.0,0.151173]
[1729889545728,0.21765331,66876.0,66874.0,0.151173]
[1729889545933,0.0447651,66875.0,66874.0,0.151173]
[1729889547398,0.15050381,66876.0,66875.0,0.149532]
[1729889547399,0.21765331,66876.0,66875.0,0.149532]
[1729889547813,0.29288173,66876.0,66875.0,0.149532]
[1729889548040,0.21765171,66876.0,66875.0,0.149532]
[1729889549158,0.2928159,66876.0,66874.0,0.00164]
[1729889549396,0.06714721,66875.0,66874.0,0.00164]
[1729889549625,0.06714721,66875.0,66874.0,0.151174]
[1729889550785,0.06714363,66875.0,66874.0,0.151174]
[1729889551882,0.21764744,66876.0,66875.0,0.149532]
[1729889555383,0.21763732,66876.0,66875.0,0.149532]
[1729889560695,0.15050381,66876.0,66875.0,0.149532]
[1729889560905,0.21763732,66876.0,66875.0,0.149532]
[1729889562016,0.15050381,66876.0,66875.0,0.149532]
[1729889562225,0.21763732,66876.0,66875.0,0.149532]
[1729889564216,0.21763605,66876.0,66875.0,0.149532]
[1729889564463,0.21763605,66876.0,66874.0,0.151174]
[1729889564681,0.19525885,66876.0,66874.0,0.151172]
[1729889564907,0.04475504,66875.0,66874.0,0.151174]
[1729889567097,0.21763605,66876.0,66875.0,0.149532]
[1729889569133,0.21763355,66876.0,66875.0,0.149532]
[1729889570011,0.21763355,66876.0,66874.0,0.00164]
[1729889570225,0.21763355,66876.0,66874.0,0.151173]
[1729889570226,0.04475182,66875.0,66874.0,0.151173]
[1729889570436,0.24244811,66875.0,66874.0,0.00164]
[1729889570649,0.15050381,66875.0,66874.0,0.00164]
[1729889570886,0.29312708,66875.0,66874.0,0.00164]
[1729889571779,0.38263566,66875.0,66874.0,0.151174]
[1729889572224,0.21763063,66875.0,66874.0,0.151174]
[1729889572926,0.21763063,66875.0,66874.0,0.00164]
[1729889573133,0.21763063,66875.0,66874.0,0.151174]
[1729889573559,0.15050381,66875.0,66874.0,0.151174]
[1729889573785,0.15050381,66875.0,66874.0,0.00164]
[1729889574655,0.38226967,66875.0,66874.0,0.00164]
[1729889574870,0.38226967,66875.0,66874.0,0.151174]
[1729889575114,0.23176586,66875.0,66874.0,0.151174]
[1729889575750,0.23176586,66875.0,66874.0,0.231274]
[1729889575751,0.06717072,66875.0,66874.0,0.231274]
[1729889575962,0.08951533,66877.0,66874.0,0.231274]
[1729889575963,0.06717072,66876.0,66875.0,0.149532]
[1729889576689,0.08951533,66877.0,66876.0,0.14953]
[1729889577529,0.08951533,66877.0,66874.0,0.380809]
[1729889577530,0.14263029,66877.0,66874.0,0.380809]
[1729889577743,0.23223642,66876.0,66875.0,0.149532]
[1729889578199,0.08960613,66876.0,66875.0,0.149532]
[1729889578409,0.25827432,66881.0,66878.0,0.149525]
[1729889578611,0.25827432,66881.0,66875.0,0.299065]
[1729889578612,0.22450889,66879.0,66875.0,0.299065]
[1729889578816,0.40877813,66881.0,66877.0,0.149527]
[1729889578817,0.1428233,66878.0,66877.0,0.149527]
[1729889579063,0.1428233,66878.0,66876.0,0.29906]
[1729889579298,0.1428233,66877.0,66876.0,0.14953]
[1729889579710,0.1428233,66877.0,66876.0,0.29906]
[1729889579711,0.1428358,66877.0,66876.0,0.29906]
[1729889580144,0.11205534,66878.0,66876.0,0.29906]
[1729889580145,0.08964146,66878.0,66876.0,0.29906]
[1729889580405,0.04481645,66880.0,66879.0,0.01]
[1729889580653,0.0082,66885.0,66884.0,0.154512]
[1729889582874,0.0082,66885.0,66884.0,0.259712]
[1729889583091,0.0082,66885.0,66884.0,0.338012]
[1729889583339,0.0082,66885.0,66884.0,0.326012]
[1729889584601,0.0082,66885.0,66884.0,0.336012]
[1729889585288,0.0082,66885.0,66884.0,0.48851581]
[1729889585831,0.22450889,66894.0,66893.0,0.156492]
[1729889586060,0.22450889,66894.0,66893.0,0.232992]
[1729889586269,0.22450889,66902.0,66893.0,0.232992]
[1729889586270,0.22450889,66902.0,66899.0,0.149479]
[1729889586731,0.04480077,66907.0,66899.0,0.149479]
[1729889586942,0.29253005,66909.0,66899.0,0.149479]
[1729889586943,0.04480077,66904.0,66899.0,0.149479]
[1729889587182,0.04480077,66906.0,66899.0,0.149479]
[1729889587430,0.25,66905.0,66899.0,0.149479]
[1729889587651,0.29480077,66905.0,66899.0,0.149479]
[1729889588306,0.25,66905.0,66899.0,0.149479]
[1729889588510,0.04480077,66907.0,66899.0,0.149479]
[1729889588729,0.04480077,66906.0,66899.0,0.149479]
[1729889588939,0.06720116,66908.0,66899.0,0.149479]
[1729889588940,0.04480077,66907.0,66899.0,0.149479]
[1729889589151,0.22532889,66909.0,66899.0,0.242079]
[1729889589837,0.22532889,66909.0,66899.0,0.244079]
[1729889590942,0.22532889,66909.0,66899.0,0.242079]
[1729889593616,0.22532889,66909.0,66899.0,0.244079]
[1729889594280,0.22532889,66909.0,66899.0,0.242079]
[1729889595916,0.00082,66909.0,66899.0,0.254079]
[1729889596191,0.00082,66909.0,66899.0,0.336179]
[1729889597566,0.22532889,66909.0,66899.0,0.33506179]
[1729889597810,0.22532889,66909.0,66899.0,0.32806179]
[1729889598268,0.22532889,66909.0,66899.0,0.33306179]
[1729889598996,0.22532889,66909.0,66899.0,0.33470379]
[1729889599456,0.22532889,66909.0,66899.0,0.32970379]
[1729889599928,0.22532889,66909.0,66899.0,0.32470379]
[1729889600180,0.22532889,66909.0,66899.0,0.32970379]
[1729889600416,0.22532889,66909.0,66899.0,0.33470379]
[1729889602581,0.22532889,66909.0,66899.0,0.32970379]
[1729889603272,0.22532889,66909.0,66899.0,0.23710379]
[1729889603987,0.22532889,66909.0,66899.0,0.23210379]
[1729889604446,0.22532889,66909.0,66899.0,0.15500379]
[1729889609367,0.00082,66909.0,66899.0,0.15500379]
[1729889609597,0.00082,66909.0,66908.0,0.149458]
[1729889611268,0.00082,66909.0,66908.0,0.37396689]
[1729889611510,0.00082,66909.0,66908.0,0.46176689]
[1729889611756,0.00082,66909.0,66908.0,0.242258]
[1729889612461,0.00082,66909.0,66908.0,0.247258]
[1729889614816,0.00082,66909.0,66908.0,0.249258]
[1729889615273,0.00082,66909.0,66908.0,0.39976181]
[1729889615498,0.00082,66916.0,66915.0,0.30423847]
[1729889616157,0.00082,66916.0,66915.0,0.31923847]
[1729889616398,0.00082,66916.0,66915.0,0.55194228]
[1729889616615,0.00082,66916.0,66915.0,0.64944228]
[1729889617121,0.00082,66916.0,66915.0,0.65644228]
[1729889617335,0.00082,66916.0,66915.0,0.66112025]
[1729889617551,0.000819,66922.0,66921.0,0.156429]
[1729889617761,0.000819,66922.0,66921.0,0.46672828]
[1729889618224,0.000819,66922.0,66921.0,0.54722828]
[1729889619302,0.000819,66922.0,66921.0,0.39243281]
[1729889619523,0.000819,66922.0,66921.0,0.159429]
[1729889622890,0.000819,66922.0,66921.0,0.154429]
[1729889623340,0.000819,66922.0,66921.0,0.149429]
[1729889624693,0.25,66919.0,66908.0,0.298917]
[1729889624933,0.15479547,66911.0,66909.0,0.149456]
[1729889625154,0.15479547,66911.0,66907.0,0.19418503]
[1729889625396,0.15479547,66911.0,66901.0,0.298949]
[1729889625397,0.25,66905.0,66901.0,0.298949]
[1729889625644,0.25,66905.0,66900.0,0.22615089]
[1729889625645,0.25,66905.0,66902.0,0.149471]
[1729889625888,0.15479547,66903.0,66902.0,0.149472]
[1729889626142,0.30529928,66903.0,66900.0,0.001642]
[1729889626390,0.149474,66901.0,66900.0,0.001642]
[1729889626660,0.60085517,66901.0,66900.0,0.001642]
[1729889626904,0.4460597,66901.0,66900.0,0.001642]
[1729889627174,0.75135898,66901.0,66900.0,0.001642]
[1729889627680,0.60188498,66901.0,66899.0,0.001642]
[1729889627931,0.399508,66886.0,66885.0,0.22450889]
[1729889628179,0.63569928,66886.0,66885.0,0.22450889]
[1729889628643,0.63569928,66886.0,66884.0,0.001642]
[1729889628871,0.15050381,66885.0,66884.0,0.001642]
[1729889629345,0.1951843,66885.0,66884.0,0.001642]
[1729889629575,0.15050381,66885.0,66884.0,0.001642]
[1729889638239,0.30001381,66885.0,66884.0,0.001642]
[1729889638525,0.52980817,66885.0,66884.0,0.001642]
[1729889638768,0.52980817,66885.0,66874.0,0.00164]
[1729889638770,0.55432747,66875.0,66874.0,0.00164]
[1729889638994,0.70483128,66875.0,66874.0,0.00164]
[1729889639958,0.55529928,66875.0,66874.0,0.00164]
[1729889642148,0.40050381,66875.0,66874.0,0.00164]
[1729889642404,0.40050381,66875.0,66874.0,0.151174]
[1729889642873,0.40050381,66875.0,66874.0,0.00164]
[1729889644703,0.40050381,66875.0,66874.0,0.151174]
[1729889644952,0.25,66875.0,66874.0,0.151174]
[1729889645220,0.40050381,66875.0,66874.0,0.00164]
[1729889646135,0.47098654,66875.0,66874.0,0.00164]
[1729889646841,0.40050381,66875.0,66874.0,0.00164]
[1729889650389,0.25,66875.0,66874.0,0.151174]
[1729889653631,0.25,66876.0,66875.0,0.149532]
[1729889656439,0.15479547,66879.0,66876.0,0.149528]
[1729889656653,0.25,66881.0,66876.0,0.299059]
[1729889656865,0.40050381,66881.0,66880.0,0.149521]
[1729889657080,0.40050381,66881.0,66876.0,0.299059]
[1729889657300,0.40050381,66881.0,66877.0,0.149527]
[1729889657794,0.40050381,66881.0,66876.0,0.299059]
[1729889658023,0.40050381,66881.0,66876.0,0.448587]
[1729889658725,0.40050381,66881.0,66876.0,0.299059]
[1729889658953,0.40050381,66881.0,66875.0,0.299065]
[1729889659183,0.40050381,66881.0,66876.0,0.29906]
[1729889659411,0.40050381,66881.0,66876.0,0.22450889]
[1729889659654,0.15561647,66884.0,66883.0,0.149514]
[1729889659655,0.000821,66884.0,66883.0,0.149514]
[1729889661275,0.000821,66884.0,66883.0,0.159514]
[1729889661501,0.000821,66884.0,66883.0,0.240814]
[1729889663101,0.000821,66884.0,66883.0,0.242814]
[1729889663311,0.000821,66884.0,66883.0,0.240814]
[1729889664878,0.000821,66884.0,66883.0,0.159514]
[1729889665098,0.000821,66884.0,66875.0,0.005]
[1729889665099,0.25,66880.0,66875.0,0.005]
[1729889665337,0.15479547,66876.0,66874.0,0.00164]
[1729889665597,0.15479547,66876.0,66874.0,0.151174]
[1729889665821,0.15479547,66876.0,66875.0,0.149532]
[1729889666061,0.15479547,66876.0,66874.0,0.00164]
[1729889667634,0.15479547,66876.0,66875.0,0.149532]
[1729889667880,0.15050381,66879.0,66874.0,0.00164]
[1729889668107,0.15050381,66879.0,66876.0,0.149529]
[1729889668545,0.15050381,66879.0,66877.0,0.149526]
[1729889670447,0.15050381,66879.0,66875.0,0.299065]
[1729889670448,0.06672683,66878.0,66875.0,0.299065]
[1729889670712,0.06672683,66878.0,66876.0,0.14953]
[1729889670713,0.21723064,66878.0,66876.0,0.14953]
[1729889670940,0.15479547,66877.0,66876.0,0.14953]
[1729889671169,0.39355813,66877.0,66876.0,0.14953]
[1729889672296,0.4158004,66877.0,66876.0,0.14953]
[1729889672729,0.4158004,66877.0,66874.0,0.00164]
[1729889672975,0.26100493,66876.0,66875.0,0.149531]
[1729889673179,0.14979355,66876.0,66875.0,0.149531]
[1729889675449,0.14979355,66876.0,66874.0,0.00164]
[1729889675708,0.15050381,66875.0,66874.0,0.00164]
[1729889675933,0.30029736,66875.0,66874.0,0.00164]
[1729889676162,0.41344298,66875.0,66874.0,0.00164]
[1729889676606,0.43685136,66875.0,66874.0,0.00164]
[1729889677091,0.37504735,66875.0,66874.0,0.153174]
[1729889677310,0.18040574,66875.0,66874.0,0.156174]
[1729889677537,0.26302549,66875.0,66874.0,0.156174]
[1729889678234,0.0672621,66875.0,66874.0,0.00664]
[1729889678488,0.08968016,66876.0,66875.0,0.149532]
[1729889678703,0.11210818,66877.0,66876.0,0.44859]
[1729889678919,0.26069788,66877.0,66876.0,0.44859]
[1729889680239,0.1485897,66877.0,66876.0,0.44859]
[1729889680706,0.14838886,66877.0,66876.0,0.44859]
[1729889680952,0.11210155,66877.0,66876.0,0.14953]
[1729889681184,0.000821,66881.0,66877.0,0.002]
[1729889681411,0.11291487,66881.0,66880.0,0.159521]
[1729889681630,0.000821,66881.0,66880.0,0.161521]
[1729889681855,0.04565799,66881.0,66880.0,0.166521]
[1729889682328,0.000821,66881.0,66880.0,0.166521]
[1729889686657,0.000821,66881.0,66880.0,0.16951124]
[1729889687768,0.000821,66881.0,66880.0,0.164521]
[1729889688947,0.000821,66881.0,66880.0,0.166521]
[1729889694850,0.000821,66881.0,66880.0,0.24891112]
[1729889695925,0.000821,66881.0,66880.0,0.39642481]
[1729889696157,0.000821,66881.0,66880.0,0.56622028]
[1729889696377,0.000821,66881.0,66880.0,0.41142481]
[1729889697684,0.000821,66881.0,66880.0,0.41947917]
[1729889706148,0.000821,66881.0,66880.0,0.41447917]
[1729889706358,0.000821,66881.0,66880.0,0.40947917]
[1729889711460,0.000821,66881.0,66880.0,0.57427464]
[1729889712135,0.000821,66881.0,66880.0,0.57895486]
[1729889716160,0.000821,66881.0,66880.0,0.57895481]
[1729889717937,1e-06,66884.0,66883.0,0.257814]
[1729889718183,1e-06,66884.0,66883.0,0.50798738]
[1729889718417,1e-06,66884.0,66883.0,0.50499798]
[1729889721662,1e-06,66884.0,66883.0,0.50699798]
[1729889721881,1e-06,66884.0,66883.0,0.50499798]
[1729889722979,1e-06,66884.0,66883.0,0.5069973]
[1729889723205,0.19461189,66896.0,66895.0,0.352288]
[1729889723495,0.000821,66901.0,66900.0,0.181476]
[1729889723720,0.000821,66901.0,66900.0,0.49145477]
[1729889726304,0.000821,66901.0,66900.0,0.48677528]
[1729889726524,0.000821,66901.0,66900.0,0.49145409]
[1729889726774,0.000821,66901.0,66900.0,0.48677528]
[1729889726987,0.000821,66901.0,66900.0,0.49145408]
[1729889728585,0.000821,66901.0,66900.0,0.64624955]
[1729889728793,0.000821,66901.0,66900.0,0.49145408]
[1729889729437,0.22450889,66913.0,66908.0,0.281058]
[1729889729650,0.22450889,66913.0,66908.0,0.58635728]
[1729889730076,0.14270502,66920.0,66908.0,0.58635728]
[1729889731700,0.14270502,66920.0,66908.0,0.66435728]
[1729889733289,0.22450889,66921.0,66908.0,0.66435728]
[1729889734697,0.22450889,66921.0,66908.0,0.6726998]
[1729889736040,0.22450889,66921.0,66908.0,0.40830433]
[1729889736275,0.22450889,66921.0,66908.0,0.31696181]
[1729889736276,0.0812,66915.0,66908.0,0.31696181]
[1729889736525,0.0812,66915.0,66908.0,0.166458]
[1729889736526,0.23599547,66915.0,66908.0,0.166458]
[1729889736731,0.14106384,66914.0,66908.0,0.171458]
[1729889736961,0.0812,66915.0,66908.0,0.171458]
[1729889742859,0.15479547,66911.0,66908.0,0.164458]
[1729889743061,0.420921,66909.0,66908.0,0.159458]
[1729889744407,0.420921,66909.0,66908.0,0.161458]
[1729889744639,0.170921,66909.0,66908.0,0.161458]
[1729889744854,0.170921,66909.0,66908.0,0.166458]
[1729889749779,0.000821,66909.0,66908.0,0.166458]
[1729889749992,0.000821,66909.0,66908.0,0.16944682]
[1729889751095,0.000821,66909.0,66908.0,0.166458]
[1729889752852,0.000821,66909.0,66908.0,0.16944665]
[1729889753561,0.000821,66909.0,66908.0,0.166458]
[1729889754872,0.000821,66909.0,66908.0,0.16944665]
[1729889757048,0.000821,66909.0,66908.0,0.166458]
[1729889759249,0.000821,66909.0,66908.0,0.16944669]
[1729889759813,0.000821,66909.0,66908.0,0.166458]
[1729889760895,0.000821,66909.0,66908.0,0.164458]
[1729889761114,0.083421,66909.0,66908.0,0.164458]
[1729889761333,0.083421,66909.0,66908.0,0.166458]
[1729889773661,0.23816522,66909.0,66908.0,0.149458]
[1729889773879,0.23816522,66909.0,66905.0,0.453392]
[1729889773880,0.25,66906.0,66905.0,0.453392]
[1729889774368,0.40372712,66906.0,66905.0,0.453392]
[1729889775266,0.49336144,66906.0,66905.0,0.453392]
[1729889775485,0.49336144,66906.0,66905.0,0.455392]
[1729889775711,0.11203485,66907.0,66906.0,0.159463]
[1729889775712,0.06721815,66907.0,66906.0,0.159463]
[1729889775953,0.08963432,66907.0,66906.0,0.161463]
[1729889776228,0.24437854,66907.0,66906.0,0.159463]
[1729889776441,0.24437854,66907.0,66901.0,0.30559]
[1729889776442,0.0816,66906.0,66901.0,0.30559]
[1729889776653,0.0816,66906.0,66905.0,0.149465]
[1729889776865,0.34692828,66906.0,66905.0,0.149465]
[1729889777107,0.23489519,66906.0,66905.0,0.154465]
[1729889777320,0.34692828,66906.0,66905.0,0.149465]
[1729889777566,0.23489519,66906.0,66905.0,0.149465]
[1729889777786,0.34692877,66906.0,66905.0,0.154465]
[1729889777996,0.38963941,66906.0,66905.0,0.154465]
[1729889778651,0.50166118,66906.0,66905.0,0.154465]
[1729889778864,0.38963941,66906.0,66905.0,0.154465]
[1729889779530,0.5016658,66906.0,66905.0,0.154465]
[1729889779970,0.38963941,66906.0,66905.0,0.154465]
[1729889780204,0.50168287,66906.0,66905.0,0.154465]
[1729889780415,0.38963941,66906.0,66905.0,0.154465]
[1729889781286,0.3902928,66906.0,66905.0,0.154465]
[1729889781538,0.39030787,66906.0,66905.0,0.154465]
[1729889783948,0.15396365,66906.0,66905.0,0.154465]
[1729889784161,0.000821,66909.0,66907.0,0.005]
[1729889784388,0.000821,66909.0,66908.0,0.149458]
[1729889784825,0.15487235,66909.0,66908.0,0.149458]
[1729889785030,0.15487235,66909.0,66908.0,0.154458]
[1729889785235,0.24451312,66909.0,66908.0,0.154458]
[1729889785861,0.2445452,66909.0,66908.0,0.159458]
[1729889786766,0.24457788,66909.0,66908.0,0.159458]
[1729889787198,0.15493115,66909.0,66908.0,0.159458]
[1729889787428,0.24457788,66909.0,66908.0,0.159458]
[1729889787639,0.15493115,66909.0,66908.0,0.159458]
[1729889787874,0.24457788,66909.0,66908.0,0.159458]
[1729889788764,0.24457788,66909.0,66908.0,0.161458]
[1729889789490,0.000821,66909.0,66908.0,0.166458]
[1729889789712,0.00068791,66909.0,66908.0,0.166458]
[1729889790153,0.00068791,66909.0,66908.0,0.39395588]
[1729889790394,0.00068791,66909.0,66908.0,0.243258]
[1729889790843,0.00068791,66909.0,66908.0,0.166458]
[1729889791807,0.04551515,66909.0,66908.0,0.166458]
[1729889796525,0.00068791,66909.0,66908.0,0.166458]
[1729889796730,0.04551506,66909.0,66908.0,0.166458]
[1729889800788,0.00068791,66909.0,66908.0,0.166458]
[1729889802134,0.04551946,66909.0,66908.0,0.166458]
[1729889802345,0.00068791,66909.0,66908.0,0.166458]
[1729889804589,0.06794295,66909.0,66908.0,0.166458]
[1729889805031,0.00068791,66909.0,66908.0,0.166458]
[1729889805279,0.06794295,66909.0,66908.0,0.166458]
[1729889807202,0.00068791,66909.0,66908.0,0.1681]
[1729889807430,0.06795283,66909.0,66908.0,0.1681]
[1729889807648,0.06795283,66909.0,66908.0,0.1611]
[1729889807858,0.00068791,66909.0,66908.0,0.1611]
[1729889808070,0.26707723,66909.0,66908.0,0.1611]
[1729889808286,0.26685114,66909.0,66908.0,0.1611]
[1729889809849,0.26685114,66909.0,66908.0,0.1631]
[1729889810068,0.26685114,66909.0,66908.0,0.1611]
[1729889811145,0.26685114,66909.0,66908.0,0.1631]
[1729889811358,0.36586517,66909.0,66908.0,0.38760889]
[1729889811611,0.36586517,66909.0,66908.0,0.47230889]
[1729889811612,0.15475941,66909.0,66908.0,0.47230889]
[1729889811863,0.00046182,66909.0,66908.0,0.2478]
[1729889814723,0.00046182,66909.0,66908.0,0.6278127]
[1729889815001,0.00046182,66909.0,66908.0,0.50830381]
[1729889815239,0.2917699,66921.0,66920.0,0.261432]
[1729889815454,0.22450889,66921.0,66920.0,0.2644203]
[1729889815690,0.000819,66922.0,66921.0,0.151429]
[1729889815922,0.000819,66922.0,66921.0,0.1644172]
[1729889817291,0.000819,66922.0,66921.0,0.5514417]
[1729889817520,0.000819,66922.0,66921.0,0.41443281]
[1729889817756,0.000819,66922.0,66921.0,0.40443281]
[1729889819105,0.000819,66922.0,66921.0,0.42739668]
[1729889819562,0.000819,66922.0,66921.0,0.42271918]
[1729889820403,0.000819,66922.0,66921.0,0.4273966]
[1729889820627,0.000819,66922.0,66921.0,0.42271918]
[1729889822611,0.000819,66922.0,66921.0,0.40771918]
[1729889822808,0.000819,66922.0,66921.0,0.41771918]
[1729889823028,0.000819,66922.0,66921.0,0.41271918]
[1729889823477,0.000819,66922.0,66921.0,0.63722807]
[1729889823714,0.000819,66922.0,66921.0,0.41271918]
[1729889824638,0.000819,66922.0,66921.0,0.41771918]
[1729889825902,0.000819,66922.0,66921.0,0.57435291]
[1729889826352,0.000819,66922.0,66921.0,0.41971918]
[1729889826536,0.000819,66922.0,66921.0,0.42471918]
[1729889827229,0.000819,66922.0,66921.0,0.42271918]
[1729889828531,0.000819,66922.0,66921.0,0.67855291]
[1729889828784,0.000819,66922.0,66921.0,0.68123021]
[1729889829036,0.000819,66922.0,66921.0,0.6832302]
[1729889829247,0.000819,66922.0,66921.0,0.67855291]
[1729889829471,0.0174041,66937.0,66936.0,0.249096]
[1729889829683,0.0174041,66937.0,66936.0,0.40459981]
[1729889831455,0.17203783,66937.0,66936.0,0.164396]
[1729889831873,0.17203783,66937.0,66936.0,0.166396]
[1729889832096,0.0174041,66937.0,66936.0,0.166396]
[1729889834173,0.25303783,66937.0,66936.0,0.164396]
[1729889835440,0.17203783,66937.0,66936.0,0.166396]
[1729889835665,0.17203783,66937.0,66936.0,0.164396]
[1729889836572,0.17203783,66937.0,66936.0,0.166396]
[1729889837920,0.0174041,66937.0,66936.0,0.166396]
[1729889839262,0.17203783,66937.0,66936.0,0.164396]
[1729889839919,0.17203783,66937.0,66936.0,0.159396]
[1729889840370,0.0174041,66937.0,66936.0,0.159396]
[1729889841511,0.0174041,66937.0,66936.0,0.164396]
[1729889842398,0.0182251,66937.0,66936.0,0.164396]
[1729889843961,0.0182251,66937.0,66936.0,0.166396]
[1729889852133,0.0182251,66937.0,66936.0,0.161396]
[1729889852365,0.0182251,66937.0,66936.0,0.166396]
[1729889853087,0.0182251,66937.0,66936.0,0.164396]
[1729889854013,0.0182251,66937.0,66936.0,0.166396]
[1729889854981,0.0182251,66937.0,66936.0,0.164396]
[1729889855623,0.0182251,66937.0,66936.0,0.166396]
[1729889858770,0.0182251,66937.0,66936.0,0.164396]
[1729889859423,0.26456031,66937.0,66936.0,0.164396]
[1729889859656,0.08543234,66937.0,66936.0,0.164396]
[1729889859876,0.08543234,66937.0,66936.0,0.166396]
[1729889860096,0.0182251,66937.0,66936.0,0.166396]
[1729889860312,0.0182251,66937.0,66936.0,0.164396]
[1729889860535,0.13014568,66937.0,66936.0,0.164396]
[1729889860986,0.28737978,66937.0,66936.0,0.164396]
[1729889861233,0.28737978,66937.0,66933.0,0.298802]
[1729889861234,0.25,66934.0,66933.0,0.005]
[1729889861470,0.25,66934.0,66929.0,0.005]
[1729889861471,0.099,66933.0,66929.0,0.005]
[1729889861703,0.099,66933.0,66925.0,0.005]
[1729889861704,0.25,66927.0,66925.0,0.22950889]
[1729889861927,0.25,66927.0,66925.0,0.37892889]
[1729889861928,0.31727647,66927.0,66925.0,0.37892889]
[1729889863470,0.25512258,66933.0,66932.0,0.151405]
[1729889863923,0.25512258,66933.0,66932.0,0.161405]
[1729889864379,0.15618793,66933.0,66932.0,0.161405]
[1729889865096,0.15618793,66933.0,66932.0,0.159405]
[1729889865283,0.15618793,66933.0,66932.0,0.38891389]
[1729889865506,0.11210297,66934.0,66933.0,0.012]
[1729889865737,0.11210297,66934.0,66933.0,0.159403]
[1729889865969,0.11210297,66934.0,66933.0,0.458208]
[1729889865970,0.15683826,66934.0,66933.0,0.458208]
[1729889866185,0.0182251,66937.0,66935.0,0.161398]
[1729889866186,0.11210297,66936.0,66935.0,0.161398]
[1729889866839,0.0182251,66937.0,66936.0,0.151396]
[1729889867688,0.1754233,66937.0,66936.0,0.151396]
[1729889867918,0.1754233,66937.0,66936.0,0.161396]
[1729889869433,0.1754233,66937.0,66936.0,0.159396]
[1729889870790,0.10790271,66937.0,66936.0,0.166396]
[1729889871017,0.08547913,66937.0,66936.0,0.166396]
[1729889871235,0.0182251,66937.0,66936.0,0.166396]
[1729889871467,0.24011539,66937.0,66936.0,0.164396]
[1729889871674,0.41988677,66937.0,66936.0,0.164396]
[1729889871884,0.33020916,66937.0,66936.0,0.164396]
[1729889872103,0.41988388,66937.0,66936.0,0.164396]
[1729889872307,0.41988388,66937.0,66936.0,0.166396]
[1729889872308,0.28766971,66937.0,66936.0,0.166396]
[1729889873011,0.28766971,66937.0,66936.0,0.164396]
[1729889874044,0.3773429,66937.0,66936.0,0.164396]
[1729889874566,0.26524589,66937.0,66936.0,0.164396]
[1729889875164,0.26524589,66937.0,66936.0,0.166396]
[1729889875482,0.1755727,66937.0,66936.0,0.164396]
[1729889875938,0.28766971,66937.0,66936.0,0.164396]
[1729889876577,0.1755727,66937.0,66936.0,0.164396]
[1729889880253,0.1755727,66937.0,66936.0,0.159396]
[1729889882813,0.1755727,66937.0,66936.0,0.154396]
[1729889883026,0.3468727,66937.0,66936.0,0.005]
[1729889883252,0.3468727,66937.0,66936.0,0.154396]
[1729889883805,0.1755727,66937.0,66936.0,0.31989981]
[1729889884035,0.0182251,66937.0,66936.0,0.338096]
[1729889884249,0.0182251,66937.0,66936.0,0.166396]
[1729889884460,0.0182251,66937.0,66936.0,0.164396]
[1729889884461,0.2682251,66937.0,66936.0,0.164396]
[1729889885326,0.0182251,66937.0,66936.0,0.164396]
[1729889885772,0.2682251,66937.0,66936.0,0.166396]
[1729889885989,0.4231028,66937.0,66936.0,0.166396]
[1729889886198,0.51278897,66937.0,66936.0,0.166396]
[1729889886414,0.4231028,66937.0,66936.0,0.166396]
[1729889886847,0.1731028,66937.0,66936.0,0.166396]
[1729889887683,0.26278906,66937.0,66936.0,0.166396]
[1729889888135,0.1731028,66937.0,66936.0,0.166396]
[1729889889092,0.0182251,66937.0,66936.0,0.166396]
[1729889889311,0.08548817,66937.0,66936.0,0.166396]
[1729889889722,0.08548817,66937.0,66936.0,0.248996]
[1729889893820,0.0182251,66937.0,66936.0,0.248996]
[1729889894263,0.06306253,66937.0,66936.0,0.248996]
[1729889894472,0.08548817,66937.0,66936.0,0.248996]
[1729889894890,0.0182251,66937.0,66936.0,0.248996]
[1729889895244,0.08548817,66937.0,66936.0,0.248996]
[1729889897428,0.0182251,66937.0,66936.0,0.22863238]
[1729889898349,0.06306284,66937.0,66936.0,0.22863238]
[1729889900070,0.06306284,66937.0,66936.0,0.23027638]
[1729889902820,0.06306284,66937.0,66936.0,0.23027638]
[1729889903029,0.06306284,66937.0,66936.0,0.38078019]
[1729889903278,0.0182251,66937.0,66936.0,0.38078019]
[1729889905065,0.0182251,66937.0,66936.0,0.29818019]
[1729889905279,0.2682251,66937.0,66936.0,0.14767638]
[1729889905491,0.31305598,66937.0,66936.0,0.14767638]
[1729889907438,0.2682251,66937.0,66936.0,0.14767638]